[Event "38th Indian Junior Girls-ch 2024"]
[Site "Karnal"]
[Date "2024.09.19"]
[Round "5.1"]
[White "Shubhi Gupta"]
[Black "Keerti Shree Reddy"]
[Result "1/2-1/2"]
[ECO "E11"]
[WhiteElo "2013"]
[BlackElo "2023"]
[Annotator "RC"]
[PlyCount "60"]
[EventDate "2024.09.16"]
[EventType "swiss"]
[EventCountry "IND"]
[SourceTitle "playchess.com"]
[Source "ChessBase"]
[SourceQuality "1"]
[TimeControl "5400+30"]

1. d4 {[%emt 0:01:25]} Nf6 {[%emt 0:01:09]} 2. Nf3 {[%emt 0:00:37]} e6 {[%emt 0:00:13]} 3. c4 {[%emt 0:00:34]} Bb4+ {[%emt 0:00:10]} 4. Bd2 {[%emt 0:00:22]} Qe7 {[%emt 0:00:10]} 5. e3 {[%emt 0:01:16]} Nc6 {[%emt 0:01:33]} 6. a3 {[%emt 0:02:34]} Bxd2+ {[%emt 0:00:46]} 7. Nfxd2 {[%emt 0:01:33]} a5 {[%emt 0:12:22]} 8. Nc3 {[%emt 0:03:57]} d6 {[%emt 0:03:30]} 9. Bd3 {[%emt 0:02:32]} O-O {[%emt 0:07:26]} 10. O-O {[%emt 0:04:44]} e5 {[%emt 0:02:51]} 11. d5 {[%emt 0:17:53]} Nb8 {[%emt 0:00:21]} 12. Qe2 {[%emt 0:01:22]} c6 {[%emt 0:10:31]} 13. e4 {[%emt 0:03:28]} Bd7 {[%emt 0:13:19]} 14. b4 {[%emt 0:04:49]} Na6 {[%emt 0:16:59]} 15. Rfb1 {[%emt 0:08:16]} axb4 {[%emt 0:02:02]} 16. axb4 {[%emt 0:00:06]} c5 {[%emt 0:01:12]} 17. bxc5 {[%emt 0:02:35]} Nxc5 {[%emt 0:00:21]} 18. Bc2 {[%emt 0:04:18]} Qd8 {[%emt 0:02:59]} 19. Nb3 {[%emt 0:37:39]} Na4 {[%emt 0:06:29]} 20. Nd1 {[%emt 0:00:00]} Qc7 {[%emt 0:02:00]} 21. Nd2 {[%emt 0:00:00]} Nc5 {[%emt 0:04:10]} 22. Ne3 {[%emt 0:00:00]} Rfb8 {[%emt 0:04:01]} 23. h3 {[%emt 0:00:00]} Ra5 {[%emt 0:03:38]} 24. Rxa5 {[%emt 0:00:00]} Qxa5 {[%emt 0:00:01]} 25. Nb3 {[%emt 0:00:00]} Nxb3 {[%emt 0:02:14]} 26. Rxb3 {[%emt 0:00:00]} b5 {[%emt 0:02:15]} 27. cxb5 {[%emt 0:00:00]} Rxb5 {[%emt 0:00:12]} 28. Nc4 {[%emt 0:00:00]} Qa1+ {[%emt 0:00:51]} 29. Kh2 {[%emt 0:00:00]} Rxb3 {[%emt 0:00:24]} 30. Bxb3 {[%emt 0:00:00]} Qa6 {[%emt 0:00:26]} 1/2-1/2

[Event "38th Indian Junior Girls-ch 2024"]
[Site "Karnal"]
[Date "2024.09.19"]
[Round "5.2"]
[White "Marium Fatima"]
[Black "Nivedita V C"]
[Result "1-0"]
[ECO "E65"]
[WhiteElo "1935"]
[BlackElo "1953"]
[Annotator "RC"]
[PlyCount "109"]
[EventDate "2024.09.16"]
[EventType "swiss"]
[EventCountry "IND"]
[SourceTitle "playchess.com"]
[Source "ChessBase"]
[SourceQuality "1"]
[TimeControl "5400+30"]

1. d4 {[%emt 0:00:02]} Nf6 {[%emt 0:04:19]} 2. c4 {[%emt 0:00:06]} g6 {[%emt 0:00:02]} 3. g3 {[%emt 0:00:04]} Bg7 {[%emt 0:00:03]} 4. Bg2 {[%emt 0:00:05]} O-O {[%emt 0:00:05]} 5. Nc3 {[%emt 0:00:04]} d6 {[%emt 0:00:03]} 6. Nf3 {[%emt 0:00:04]} c5 {[%emt 0:00:03]} 7. O-O {[%emt 0:00:08]} Nc6 {[%emt 0:00:02]} 8. dxc5 {[%emt 0:00:06]} dxc5 {[%emt 0:00:06]} 9. Be3 {[%emt 0:00:03]} Qa5 {[%emt 0:07:51]} 10. Qa4 {[%emt 0:04:05]} Be6 {[%emt 0:11:46]} 11. Qb5 {[%emt 0:01:00]} a6 {[%emt 0:03:17]} 12. Qxa5 {[%emt 0:03:25]} Nxa5 {[%emt 0:00:02]} 13. b3 {[%emt 0:05:57]} Ng4 {[%emt 0:03:21]} 14. Bd2 {[%emt 0:01:37]} Rfd8 {[%emt 0:22:44]} 15. Rac1 {[%emt 0:01:19]} Nc6 {[%emt 0:01:57]} 16. Na4 {[%emt 0:03:09]} Bf5 {[%emt 0:12:50]} 17. Bc3 {[%emt 0:18:46]} Nd4 {[%emt 0:02:18]} 18. Nxd4 {[%emt 0:01:51]} cxd4 {[%emt 0:07:11]} 19. Ba5 {[%emt 0:00:09]} Rdb8 {[%emt 0:02:19]} 20. Nb6 {[%emt 0:05:17]} Ra7 {[%emt 0:00:08]} 21. c5 {[%emt 0:00:28]} Ne5 {[%emt 0:03:10]} 22. Nd5 {[%emt 0:01:02]} Nc6 {[%emt 0:01:32]} 23. Bb6 {[%emt 0:00:31]} Raa8 {[%emt 0:00:02]} 24. Nc7 {[%emt 0:01:30]} e5 {[%emt 0:01:39]} 25. b4 {[%emt 0:10:36]} e4 {[%emt 0:03:47]} 26. Nxa8 {[%emt 0:01:19]} Rxa8 {[%emt 0:00:02]} 27. a4 {[%emt 0:01:51]} Nxb4 {[%emt 0:01:14]} 28. g4 {[%emt 0:00:11]} Bxg4 {[%emt 0:00:25]} 29. Bxe4 {[%emt 0:00:02]} Bxe2 {[%emt 0:06:30]} 30. Bxb7 {[%emt 0:00:11]} Rb8 {[%emt 0:00:05]} 31. Bg2 {[%emt 0:00:12]} Bxf1 {[%emt 0:01:38]} 32. Kxf1 {[%emt 0:00:17]} Be5 {[%emt 0:03:06]} 33. Rb1 {[%emt 0:01:32]} Na2 {[%emt 0:00:46]} 34. Re1 {[%emt 0:00:57]} Bxh2 {[%emt 0:00:51]} 35. Ba7 {[%emt 0:00:45]} Rc8 {[%emt 0:00:44]} 36. Bb7 {[%emt 0:00:44]} Rf8 {[%emt 0:01:36]} 37. c6 {[%emt 0:00:13]} Nc3 {[%emt 0:00:26]} 38. Bxd4 {[%emt 0:00:20]} Nd5 {[%emt 0:00:46]} 39. Bxa6 {[%emt 0:00:38]} Nc7 {[%emt 0:00:22]} 40. Bb7 {[%emt 0:00:32]} Bd6 {[%emt 0:00:35]} 41. a5 {[%emt 0:00:37]} Re8 {[%emt 0:00:35]} 42. Rxe8+ {[%emt 0:03:37]} Nxe8 {[%emt 0:00:02]} 43. a6 {[%emt 0:00:06]} Bb8 {[%emt 0:00:40]} 44. a7 {[%emt 0:00:50]} Bxa7 {[%emt 0:00:02]} 45. Bxa7 {[%emt 0:00:05]} Kf8 {[%emt 0:00:06]} 46. Bb6 {[%emt 0:01:18]} Ke7 {[%emt 0:00:11]} 47. c7 {[%emt 0:00:10]} Nxc7 {[%emt 0:00:05]} 48. Bxc7 {[%emt 0:00:02]} f5 {[%emt 0:00:08]} 49. Bc8 {[%emt 0:00:37]} Kf6 {[%emt 0:00:05]} 50. Bd8+ {[%emt 0:00:21]} Ke5 {[%emt 0:00:08]} 51. Bg5 {[%emt 0:00:05]} h5 {[%emt 0:00:37]} 52. Kg2 {[%emt 0:00:08]} Ke4 {[%emt 0:00:09]} 53. Bb7+ {[%emt 0:00:23]} Ke5 {[%emt 0:00:10]} 54. Kg3 {[%emt 0:00:14]} Ke6 {[%emt 0:00:10]} 55. Kf4 {[%emt 0:00:10]} 1-0

[Event "38th Indian Junior Girls-ch 2024"]
[Site "Karnal"]
[Date "2024.09.19"]
[Round "5.3"]
[White "Gorli Nyna"]
[Black "Sneha Halder"]
[Result "1/2-1/2"]
[ECO "C01"]
[WhiteElo "1865"]
[BlackElo "1990"]
[Annotator "NA RC"]
[PlyCount "78"]
[EventDate "2024.09.16"]
[EventType "swiss"]
[EventCountry "IND"]
[SourceTitle "playchess.com"]
[Source "ChessBase"]
[SourceQuality "1"]
[TimeControl "5400+30"]

1. e4 {[%emt 0:00:17]} e5 {[%emt 0:06:12]} 2. Nf3 {[%emt 0:00:11]} Nf6 {[%emt 0:00:07]} 3. Nxe5 {[%emt 0:00:37]} d6 {[%emt 0:00:05]} 4. Nf3 {[%emt 0:00:20]} Nxe4 {[%emt 0:00:03]} 5. d3 {[%emt 0:00:19]} Nf6 {[%emt 0:00:05]} 6. d4 {[%emt 0:00:06]} d5 {[%emt 0:00:19]} 7. Bd3 {[%emt 0:01:29]} Bg4 {[%emt 0:00:45]} 8. Bg5 {[%emt 0:01:54]} Qe7+ {[%emt 0:04:49]} 9. Qe2 $11 {[%emt 0:04:23]} (9. Be3 $1 $14) 9... Bxf3 {[%emt 0:01:40]} 10. gxf3 {[%emt 0:01:11]} Qxe2+ {[%emt 0:00:07]} 11. Kxe2 {[%emt 0:01:28]} Nbd7 {[%emt 0:00:17]} 12. Nc3 {[%emt 0:03:29]} c6 {[%emt 0:01:00]} 13. Bf4 {[%emt 0:06:04]} Nh5 {[%emt 0:04:09]} 14. Bg3 {[%emt 0:00:26]} Bb4 {[%emt 0:00:31]} 15. Kd2 {[%emt 0:01:44]} Nxg3 {[%emt 0:00:51]} 16. fxg3 {[%emt 0:01:07]} c5 {[%emt 0:07:02]} 17. Kd1 {[%emt 0:04:07]} Bxc3 {[%emt 0:02:31]} 18. bxc3 {[%emt 0:00:03]} Ke7 {[%emt 0:03:58]} 19. Kd2 {[%emt 0:02:49]} Kd6 {[%emt 0:02:43]} 20. Rhe1 {[%emt 0:04:05]} g6 {[%emt 0:03:22]} 21. Rab1 {[%emt 0:02:09]} c4 {[%emt 0:01:53]} 22. Bf1 {[%emt 0:00:30]} b6 {[%emt 0:00:17]} 23. Bh3 {[%emt 0:01:51]} Nb8 {[%emt 0:00:18]} 24. Bg2 {[%emt 0:01:04]} Nc6 {[%emt 0:00:38]} 25. Rb5 {[%emt 0:00:29]} Ne7 {[%emt 0:02:33]} 26. f4 {[%emt 0:03:49]} Rad8 {[%emt 0:04:33]} 27. a4 {[%emt 0:02:04]} Rhe8 {[%emt 0:01:49]} 28. Re5 {[%emt 0:00:31]} f6 {[%emt 0:00:39]} 29. Re2 {[%emt 0:00:13]} Kc7 {[%emt 0:01:33]} 30. Rb1 {[%emt 0:04:04]} Nf5 {[%emt 0:02:52]} 31. Rxe8 {[%emt 0:00:57]} Rxe8 {[%emt 0:00:01]} 32. Bxd5 {[%emt 0:00:13]} Nd6 {[%emt 0:00:01]} 33. Rb4 {[%emt 0:04:39]} a5 {[%emt 0:00:04]} 34. Rb1 {[%emt 0:00:06]} h6 {[%emt 0:00:40]} 35. Bf3 {[%emt 0:00:51]} Re7 {[%emt 0:00:25]} 36. Ra1 {[%emt 0:01:04]} Re8 {[%emt 0:00:08]} 37. Rb1 {[%emt 0:00:10]} Re7 {[%emt 0:02:26]} 38. Ra1 {[%emt 0:00:50]} Re8 {[%emt 0:00:32]} 39. Rb1 {[%emt 0:00:06]} Re7 {[%emt 0:07:41]} 1/2-1/2

[Event "38th Indian Junior Girls-ch 2024"]
[Site "Karnal"]
[Date "2024.09.19"]
[Round "5.3"]
[White "Gorli Nyna"]
[Black "Sneha Halder"]
[Result "*"]
[ECO "C01"]
[WhiteElo "1865"]
[BlackElo "1990"]
[Annotator "RC"]
[PlyCount "22"]
[EventDate "2024.09.16"]
[EventType "swiss"]
[EventCountry "IND"]
[SourceTitle "playchess.com"]
[Source "ChessBase"]
[SourceQuality "1"]
[TimeControl "5400+30"]

1. e4 {[%emt 0:00:17]} e5 {[%emt 0:06:12]} 2. Nf3 {[%emt 0:00:11]} Nf6 {[%emt 0:00:07]} 3. Nxe5 {[%emt 0:00:37]} d6 {[%emt 0:00:05]} 4. Nf3 {[%emt 0:00:20]} Nxe4 {[%emt 0:00:03]} 5. d3 {[%emt 0:00:19]} Nf6 {[%emt 0:00:05]} 6. d4 {[%emt 0:00:06]} d5 {[%emt 0:00:19]} 7. Bd3 {[%emt 0:01:29]} Bg4 {[%emt 0:00:45]} 8. Bg5 {[%emt 0:01:54]} Qe7+ {[%emt 0:04:49]} 9. Qe2 {[%emt 0:04:23]} Bxf3 {[%emt 0:01:40]} 10. gxf3 {[%emt 0:01:11]} Qe6 {[%emt 1:21:25]} 11. Qe3 Qxe3+ {[%emt 0:00:00]} *

[Event "38th Indian Junior Girls-ch 2024"]
[Site "Karnal"]
[Date "2024.09.19"]
[Round "5.4"]
[White "Chinnam Vyshnavi"]
[Black "Mrittika Mallick"]
[Result "1-0"]
[ECO "E04"]
[WhiteElo "1863"]
[BlackElo "1962"]
[Annotator "RC"]
[PlyCount "108"]
[EventDate "2024.09.16"]
[EventType "swiss"]
[EventCountry "IND"]
[SourceTitle "playchess.com"]
[Source "ChessBase"]
[SourceQuality "1"]
[TimeControl "5400+30"]

1. d4 {[%emt 0:03:01]} d5 {[%emt 0:00:07]} 2. c4 {[%emt 0:00:09]} e6 {[%emt 0:00:09]} 3. Nf3 {[%emt 0:00:04]} a6 {[%emt 0:00:12]} 4. g3 {[%emt 0:01:47]} dxc4 {[%emt 0:00:31]} 5. Bg2 {[%emt 0:00:22]} Nc6 {[%emt 0:00:33]} 6. O-O {[%emt 0:00:38]} Nf6 {[%emt 0:00:24]} 7. Nc3 {[%emt 0:03:54]} Be7 {[%emt 0:00:47]} 8. Qa4 {[%emt 0:02:24]} O-O {[%emt 0:03:40]} 9. Qxc4 {[%emt 0:00:45]} Nd5 {[%emt 0:01:37]} 10. e4 {[%emt 0:02:29]} Nb6 {[%emt 0:00:26]} 11. Qd3 {[%emt 0:00:25]} Nb4 {[%emt 0:08:53]} 12. Qe2 {[%emt 0:00:50]} c5 {[%emt 0:03:15]} 13. Rd1 {[%emt 0:06:28]} cxd4 {[%emt 0:00:47]} 14. Nxd4 {[%emt 0:00:45]} Qc7 {[%emt 0:01:31]} 15. a3 {[%emt 0:03:42]} Nc6 {[%emt 0:01:03]} 16. Bf4 {[%emt 0:00:57]} e5 {[%emt 0:01:14]} 17. Nxc6 {[%emt 0:01:31]} bxc6 {[%emt 0:00:08]} 18. Be3 {[%emt 0:01:42]} a5 {[%emt 0:01:19]} 19. Rac1 {[%emt 0:00:45]} Ba6 {[%emt 0:00:37]} 20. Qg4 {[%emt 0:03:05]} Bc8 {[%emt 0:00:22]} 21. Qe2 {[%emt 0:08:30]} Ba6 {[%emt 0:00:19]} 22. Qg4 {[%emt 0:08:19]} Bc8 {[%emt 0:00:22]} 23. Qf3 {[%emt 0:08:32]} Nc4 {[%emt 0:02:13]} 24. Na4 {[%emt 0:02:28]} Be6 {[%emt 0:03:10]} 25. Rc2 {[%emt 0:11:04]} Qb7 {[%emt 0:01:51]} 26. Rdc1 {[%emt 0:03:56]} Qb5 {[%emt 0:01:08]} 27. Bf1 {[%emt 0:02:50]} Qxa4 {[%emt 0:00:41]} 28. Bxc4 {[%emt 0:23:08]} Bxc4 {[%emt 0:00:28]} 29. Rxc4 {[%emt 0:00:00]} Qb5 {[%emt 0:00:38]} 30. R1c2 {[%emt 0:00:00]} Rfc8 {[%emt 0:01:52]} 31. Qf5 {[%emt 0:00:00]} Qb7 {[%emt 0:03:21]} 32. Qxe5 {[%emt 0:00:00]} Bf6 {[%emt 0:00:05]} 33. Qd6 {[%emt 0:00:00]} Bxb2 {[%emt 0:00:19]} 34. a4 {[%emt 0:00:00]} Qb3 {[%emt 0:05:32]} 35. Qc5 {[%emt 0:00:00]} Ba3 {[%emt 0:02:36]} 36. Qb6 {[%emt 0:00:00]} Qd3 {[%emt 0:01:56]} 37. Rxc6 {[%emt 0:00:00]} Rcb8 {[%emt 0:01:17]} 38. Qc7 {[%emt 0:02:34]} Rb1+ {[%emt 0:01:17]} 39. Bc1 {[%emt 0:01:05]} Qxe4 {[%emt 0:01:08]} 40. R6c4 {[%emt 0:00:14]} Qd5 {[%emt 0:01:11]} 41. Qc6 {[%emt 0:00:15]} Qd8 {[%emt 0:02:34]} 42. Qxa8 {[%emt 0:00:44]} Qxa8 {[%emt 0:00:26]} 43. Rc8+ {[%emt 0:00:01]} Qxc8 {[%emt 0:00:34]} 44. Rxc8+ {[%emt 0:00:02]} Bf8 {[%emt 0:00:17]} 45. Kg2 {[%emt 0:00:03]} Rxc1 {[%emt 0:03:34]} 46. Rxc1 {[%emt 0:00:03]} g6 {[%emt 0:00:09]} 47. Rc7 {[%emt 0:00:12]} Bb4 {[%emt 0:00:16]} 48. Kf3 {[%emt 0:00:05]} Kg7 {[%emt 0:00:19]} 49. Ke4 {[%emt 0:00:03]} Bd6 {[%emt 0:00:18]} 50. Ra7 {[%emt 0:00:14]} Bb4 {[%emt 0:01:34]} 51. Kd5 {[%emt 0:00:05]} Kf6 {[%emt 0:00:05]} 52. Kc4 {[%emt 0:00:03]} Ke6 {[%emt 0:00:28]} 53. Kb5 {[%emt 0:00:04]} Be1 {[%emt 0:00:47]} 54. f3 {[%emt 0:00:05]} Kd5 {[%emt 0:00:00]} 1-0

[Event "38th Indian Junior Girls-ch 2024"]
[Site "Karnal"]
[Date "2024.09.19"]
[Round "5.5"]
[White "Sravyasree Bheemarasetty"]
[Black "Anushka Bapu Kutwal"]
[Result "1-0"]
[ECO "A03"]
[WhiteElo "1874"]
[BlackElo "1860"]
[Annotator "NA RC"]
[PlyCount "105"]
[EventDate "2024.09.16"]
[EventType "swiss"]
[EventCountry "IND"]
[SourceTitle "playchess.com"]
[Source "ChessBase"]
[SourceQuality "1"]
[TimeControl "5400+30"]

1. g3 {[%emt 0:00:01]} d5 {[%emt 0:04:10]} 2. f4 {[%emt 0:00:18]} c5 {[%emt 0:02:21]} 3. Bg2 {[%emt 0:00:01]} Nc6 {[%emt 0:00:38]} 4. Nf3 {[%emt 0:00:07]} g6 {[%emt 0:00:46]} 5. e3 {[%emt 0:00:03]} Bg7 {[%emt 0:00:33]} 6. d4 {[%emt 0:01:17]} Nf6 {[%emt 0:02:08]} 7. O-O {[%emt 0:00:10]} cxd4 {[%emt 0:04:36]} 8. exd4 {[%emt 0:00:08]} Bg4 {[%emt 0:01:57]} 9. c3 {[%emt 0:00:59]} Ne4 {[%emt 0:03:34]} 10. h3 {[%emt 0:00:56]} Bxf3 {[%emt 0:05:10]} 11. Qxf3 {[%emt 0:00:31]} Qb6 {[%emt 0:06:18]} 12. Kh2 {[%emt 0:01:44]} O-O-O {[%emt 0:03:52]} 13. a4 {[%emt 0:03:37]} f5 {[%emt 0:02:39]} 14. b4 {[%emt 0:00:26]} h5 {[%emt 0:02:38]} 15. h4 {[%emt 0:00:39]} Kb8 {[%emt 0:02:38]} 16. Qd3 {[%emt 0:01:47]} Nf6 {[%emt 0:03:15]} 17. a5 {[%emt 0:02:44]} Qc7 {[%emt 0:04:13]} 18. Nd2 {[%emt 0:01:11]} Ng4+ {[%emt 0:01:59]} 19. Kg1 {[%emt 0:00:42]} Rhe8 {[%emt 0:08:36]} 20. Nb3 {[%emt 0:01:17]} Ka8 {[%emt 0:11:01]} 21. b5 {[%emt 0:01:33]} Nb8 {[%emt 0:00:29]} 22. Nc5 {[%emt 0:00:10]} e5 {[%emt 0:02:13]} 23. b6 {[%emt 0:01:46]} Qc6 {[%emt 0:04:06]} 24. a6 {[%emt 0:00:11]} Nxa6 {[%emt 0:03:18]} 25. Nxa6 {[%emt 0:00:28]} Qxb6 {[%emt 0:04:30]} 26. Nc5 {[%emt 1:20:44]} exd4 {[%emt 0:00:20]} 27. cxd4 {[%emt 0:00:00]} Re4 {[%emt 0:01:39]} 28. Rb1 {[%emt 0:00:00]} Rxd4 {[%emt 0:06:27]} 29. Rxb6 {[%emt 0:00:00]} Rxd3 {[%emt 0:00:04]} 30. Nxd3 {[%emt 0:00:00]} Bd4+ {[%emt 0:00:52]} 31. Kh1 {[%emt 0:00:00]} Bxb6 {[%emt 0:00:44]} 32. Ne5 {[%emt 0:00:00]} Nf2+ {[%emt 0:00:36]} 33. Kh2 {[%emt 0:00:00]} Ng4+ {[%emt 0:00:11]} 34. Nxg4 {[%emt 0:00:00]} hxg4 {[%emt 0:00:06]} 35. Re1 {[%emt 0:00:00]} Kb8 {[%emt 0:02:26]} 36. Re6 {[%emt 0:00:00]} d4 {[%emt 0:00:23]} 37. Rxg6 {[%emt 0:00:00]} Rc8 {[%emt 0:02:01]} 38. Bb2 {[%emt 0:00:00]} Rc2 {[%emt 0:00:10]} 39. Rxb6 {[%emt 0:00:00]} axb6 {[%emt 0:00:55]} 40. Bxd4 {[%emt 0:00:00]} Ka7 {[%emt 0:00:44]} 41. h5 {[%emt 0:00:00]} Rc7 {[%emt 0:00:16]} 42. h6 {[%emt 0:00:00]} Rh7 {[%emt 0:01:02]} 43. Bg7 {[%emt 0:00:00]} b5 {[%emt 0:00:46]} 44. Bd5 {[%emt 0:00:00]} b4 {[%emt 0:00:08]} 45. Bg8 {[%emt 0:00:00]} Rxh6+ {[%emt 0:00:16]} 46. Bxh6 {[%emt 0:00:00]} Kb6 {[%emt 0:00:08]} 47. Be6 {[%emt 0:00:00]} Kb5 {[%emt 0:00:13]} 48. Bxf5 {[%emt 0:00:00]} b3 {[%emt 0:00:09]} 49. Bg7 {[%emt 0:00:00]} Kb4 {[%emt 0:00:10]} 50. Bxg4 {[%emt 0:00:00]} Ka3 {[%emt 0:00:03]} 51. Be6 {[%emt 0:00:00]} b2 {[%emt 0:00:06]} 52. Bxb2+ {[%emt 0:00:00]} Kxb2 {[%emt 0:00:05]} 53. f5 {[%emt 0:00:00]} 1-0

[Event "38th Indian Junior Girls-ch 2024"]
[Site "Karnal"]
[Date "2024.09.19"]
[Round "5.6"]
[White "Cera Dagariya"]
[Black "Velpula Sarayu"]
[Result "1-0"]
[ECO "B23"]
[WhiteElo "1844"]
[BlackElo "2381"]
[Annotator "RC"]
[PlyCount "59"]
[EventDate "2024.09.16"]
[EventType "swiss"]
[EventCountry "IND"]
[SourceTitle "playchess.com"]
[Source "ChessBase"]
[SourceQuality "1"]
[TimeControl "5400+30"]

1. e4 {[%emt 0:00:02]} c5 {[%emt 0:00:26]} 2. Nc3 {[%emt 0:00:16]} d6 {[%emt 0:00:31]} 3. f4 {[%emt 0:00:11]} g6 {[%emt 0:00:30]} 4. Nf3 {[%emt 0:00:13]} Bg7 {[%emt 0:00:28]} 5. Bb5+ {[%emt 0:00:16]} Bd7 {[%emt 0:00:47]} 6. a4 {[%emt 0:00:12]} Nc6 {[%emt 0:00:23]} 7. O-O {[%emt 0:00:23]} a6 {[%emt 0:00:32]} 8. Bc4 {[%emt 0:00:28]} e6 {[%emt 0:05:55]} 9. d3 {[%emt 0:02:16]} Nge7 {[%emt 0:00:54]} 10. f5 {[%emt 0:11:12]} gxf5 {[%emt 0:03:08]} 11. Ng5 {[%emt 0:13:16]} Ne5 {[%emt 0:23:30]} 12. Qh5 {[%emt 0:13:43]} N7g6 {[%emt 0:01:59]} 13. exf5 {[%emt 0:08:55]} exf5 {[%emt 0:00:20]} 14. Bb3 {[%emt 0:10:03]} Kf8 {[%emt 0:18:48]} 15. Bf4 {[%emt 0:07:01]} Nxf4 {[%emt 0:09:50]} 16. Rxf4 {[%emt 0:00:05]} Qe8 {[%emt 0:03:02]} 17. Nd5 {[%emt 0:02:32]} h6 {[%emt 0:04:12]} 18. Nf3 {[%emt 0:11:22]} f6 {[%emt 0:13:17]} 19. Qh3 {[%emt 0:00:59]} Ng6 {[%emt 0:03:03]} 20. Re1 {[%emt 0:02:05]} Qf7 {[%emt 0:00:59]} 21. Qg3 {[%emt 0:02:43]} Ne5 {[%emt 0:02:56]} 22. Nc7 {[%emt 0:04:54]} c4 {[%emt 0:00:53]} 23. Nxe5 {[%emt 0:00:53]} fxe5 {[%emt 0:01:59]} 24. Rxc4 {[%emt 0:00:21]} f4 {[%emt 0:00:42]} 25. Qf3 {[%emt 0:01:11]} Rc8 {[%emt 0:00:15]} 26. Qxb7 {[%emt 0:01:41]} Bf6 {[%emt 0:01:53]} 27. Rxf4 {[%emt 0:01:35]} Qg7 {[%emt 0:00:33]} 28. Rxf6+ {[%emt 0:00:59]} Qxf6 {[%emt 0:00:00]} 29. Rf1 {[%emt 0:00:01]} Bf5 {[%emt 0:00:06]} 30. Qxc8+ {[%emt 0:01:58]} 1-0

[Event "38th Indian Junior Girls-ch 2024"]
[Site "Karnal"]
[Date "2024.09.19"]
[Round "5.7"]
[White "Bhagyashree Patil"]
[Black "Sindhusree K"]
[Result "0-1"]
[ECO "D02"]
[WhiteElo "1987"]
[BlackElo "1840"]
[Annotator "RC"]
[PlyCount "74"]
[EventDate "2024.09.16"]
[EventType "swiss"]
[EventCountry "IND"]
[SourceTitle "playchess.com"]
[Source "ChessBase"]
[SourceQuality "1"]
[TimeControl "5400+30"]

1. d4 {[%emt 0:04:11]} Nf6 {[%emt 0:00:20]} 2. Nf3 {[%emt 0:00:20]} d5 {[%emt 0:00:04]} 3. Bf4 {[%emt 0:00:05]} e6 {[%emt 0:00:16]} 4. e3 {[%emt 0:00:39]} Bd6 {[%emt 0:00:05]} 5. Bd3 {[%emt 0:01:12]} O-O {[%emt 0:00:20]} 6. Nbd2 {[%emt 0:01:05]} c5 {[%emt 0:00:05]} 7. c3 {[%emt 0:01:25]} b6 {[%emt 0:04:16]} 8. O-O {[%emt 0:04:06]} Bb7 {[%emt 0:00:11]} 9. Re1 {[%emt 0:02:36]} Qc7 {[%emt 0:09:11]} 10. dxc5 {[%emt 0:09:07]} Bxf4 {[%emt 0:20:18]} 11. cxb6 {[%emt 0:06:55]} Bxh2+ {[%emt 0:04:55]} 12. Nxh2 {[%emt 0:00:06]} Qxb6 {[%emt 0:00:03]} 13. Qc2 {[%emt 0:09:37]} Nbd7 {[%emt 0:01:37]} 14. Nhf3 {[%emt 0:03:08]} Nc5 {[%emt 0:03:39]} 15. Bf1 {[%emt 0:05:24]} Rab8 {[%emt 0:02:37]} 16. Rab1 {[%emt 0:08:03]} Rfc8 {[%emt 0:03:18]} 17. Rec1 {[%emt 0:00:49]} h6 {[%emt 0:08:51]} 18. c4 {[%emt 0:11:04]} Nce4 {[%emt 0:04:16]} 19. b4 {[%emt 0:06:08]} dxc4 {[%emt 0:11:25]} 20. Nxc4 {[%emt 0:01:51]} Qd8 {[%emt 0:02:37]} 21. Nfe5 {[%emt 0:03:16]} Bd5 {[%emt 0:06:39]} 22. Qd1 {[%emt 0:05:05]} Rc7 {[%emt 0:05:01]} 23. Rc2 {[%emt 0:01:29]} Nd7 {[%emt 0:03:13]} 24. Nf3 {[%emt 0:03:55]} Bc6 {[%emt 0:03:30]} 25. Qd3 {[%emt 0:01:06]} Bd5 {[%emt 0:01:14]} 26. a3 {[%emt 0:01:46]} Rbc8 {[%emt 0:00:46]} 27. Rbc1 {[%emt 0:00:01]} Qf6 {[%emt 0:02:31]} 28. a4 {[%emt 0:04:06]} Qe7 {[%emt 0:00:49]} 29. Na3 {[%emt 0:05:40]} Rxc2 {[%emt 0:00:33]} 30. Rxc2 {[%emt 0:00:01]} Rxc2 {[%emt 0:00:16]} 31. Nxc2 {[%emt 0:00:06]} Ndf6 {[%emt 0:00:41]} 32. Ne5 {[%emt 0:00:02]} Qc7 {[%emt 0:00:18]} 33. f4 {[%emt 0:00:46]} Ng3 {[%emt 0:01:30]} 34. Nd4 {[%emt 0:01:05]} Qc1 {[%emt 0:00:06]} 35. b5 {[%emt 0:01:12]} Nfe4 {[%emt 0:00:26]} 36. Ng4 {[%emt 0:00:22]} h5 {[%emt 0:00:19]} 37. Nh2 {[%emt 0:00:23]} Qe1 {[%emt 0:00:18]} 0-1